bitfinex/quotes_ETHUSD_20220103
["timestamp","ask_amount","ask_price","bid_price","bid_amount"]
[1641232770602,4.36063482,3763.0,3762.9,0.00170527]
[1641232772811,4.36063482,3763.0,3762.8,5.37226427]
[1641232773012,1.0,3762.9,3762.8,5.37226427]
[1641232773412,1.38171303,3762.9,3762.8,5.37226427]
[1641232774456,1.38171303,3762.9,3762.8,8.03212571]
[1641232775058,0.38171303,3762.9,3762.8,8.03212571]
[1641232776660,0.38440265,3762.9,3762.8,5.37226427]
[1641232783956,0.68440265,3762.9,3762.8,5.37226427]
[1641232785805,0.85960265,3762.9,3762.8,5.37226427]
[1641232786005,1.24160265,3762.9,3762.8,5.37226427]
[1641232786405,0.94160265,3762.9,3762.8,5.37226427]
[1641232786606,0.55960265,3762.9,3762.8,5.37226427]
[1641232786806,0.38440265,3762.9,3762.8,5.37226427]
[1641232787718,0.68440265,3762.9,3762.8,5.37226427]
[1641232787911,0.38440265,3762.9,3762.8,5.37226427]
[1641232788308,0.68440265,3762.9,3762.8,5.37226427]
[1641232788854,0.38440265,3762.9,3762.8,5.37226427]
[1641232789056,0.68440265,3762.9,3762.8,5.37226427]
[1641232789655,3.33375232,3762.9,3762.8,5.37226427]
[1641232790261,0.68440265,3762.9,3762.8,5.37226427]
[1641232794003,3.33550295,3762.9,3762.8,5.37226427]
[1641232794202,2.95378992,3762.9,3762.8,5.37226427]
[1641232794802,3.33550295,3762.9,3762.8,5.37226427]
[1641232795705,0.68440265,3762.9,3762.8,5.37226427]
[1641232796553,3.33764452,3762.9,3762.8,5.37226427]
[1641232796751,3.41964452,3762.9,3762.8,5.37226427]
[1641232796955,3.71964452,3762.9,3762.8,5.37226427]
[1641232797153,3.33793149,3762.9,3762.8,5.37226427]
[1641232797353,3.03793149,3762.9,3762.8,5.37226427]
[1641232797757,0.76640265,3762.9,3762.8,5.37226427]
[1641232798757,3.41964452,3762.9,3762.8,5.37226427]
[1641232799358,0.76640265,3762.9,3762.8,5.37226427]
[1641232800006,1.06640265,3762.9,3762.8,5.37226427]
[1641232801109,2.06640265,3762.9,3762.8,5.37226427]
[1641232801711,4.45,3762.8,3762.7,0.105359]
[1641232802011,4.832,3762.8,3762.7,0.105359]
[1641232802210,5.832,3762.8,3762.7,0.105359]
[1641232802411,5.832,3762.8,3762.5,0.06255813]
[1641232802412,1.382,3762.8,3762.5,0.06255813]
[1641232802611,1.6648063,3762.7,3762.5,0.06255813]
[1641232802811,2.88657928,3762.6,3762.5,0.06255813]
[1641232803012,5.83239177,3762.6,3762.5,0.06255813]
[1641232803212,5.83239177,3762.6,3762.3,0.0268693]
[1641232803416,4.84451508,3762.5,3762.3,0.0268693]
[1641232803614,7.67087508,3762.4,3762.3,0.0268693]
[1641232803856,5.456,3762.4,3762.3,0.0268693]
[1641232804054,6.456,3762.4,3762.3,0.0268693]
[1641232804454,9.48352552,3762.4,3762.3,0.0268693]
[1641232805459,6.83771303,3762.4,3762.3,0.0268693]
[1641232805860,6.83771303,3762.4,3762.3,0.1322283]
[1641232806065,9.26197526,3762.4,3762.3,0.1322283]
[1641232806260,9.316186,3762.4,3762.3,0.1322283]
[1641232806659,6.83771303,3762.4,3762.3,0.1322283]
[1641232807264,5.53771303,3762.4,3762.3,0.13563884]
[1641232807539,0.38171303,3762.4,3762.3,0.13563884]
[1641232808837,0.38171303,3762.4,3762.3,2.84331803]
[1641232809644,0.38171303,3762.4,3762.3,2.86503759]
[1641232811860,0.38171303,3762.4,3762.3,5.22246416]
[1641232812265,0.38171303,3762.4,3762.3,2.81503759]
[1641232812666,0.38171303,3762.4,3762.3,5.27296175]
[1641232812866,0.38171303,3762.4,3762.3,5.57296175]
[1641232813067,0.38171303,3762.4,3762.3,21.14296175]
[1641232813267,0.38171303,3762.4,3762.3,21.52496175]
[1641232813468,1.303e-05,3762.4,3762.3,21.53777144]
[1641232813668,1.303e-05,3762.4,3762.3,19.07984728]
[1641232813871,1.303e-05,3762.4,3762.3,24.39564728]
[1641232814270,1.303e-05,3762.4,3762.3,25.69564728]
[1641232815002,1.303e-05,3762.4,3762.3,10.12564728]
[1641232815207,1.303e-05,3762.4,3762.3,8.82564728]
[1641232815407,0.00268962,3762.9,3762.6,0.66444]
[1641232815609,0.00268962,3762.9,3762.7,6.36634189]
[1641232815811,0.00268962,3762.9,3762.7,6.36747874]
[1641232816009,0.00268962,3762.9,3762.8,0.02171956]
[1641232816207,0.00268962,3762.9,3762.8,5.33691956]
[1641232821367,0.00268962,3762.9,3762.8,5.63691956]
[1641232821569,0.16369694,3763.2,3762.8,5.63691956]
[1641232821768,0.16369694,3763.2,3762.8,6.00140956]
[1641232821966,0.00113684,3763.1,3762.8,5.99054978]
[1641232822167,0.00113684,3763.1,3762.8,5.97969]
[1641232822370,0.00113684,3763.1,3763.0,0.02171956]
[1641232827256,0.66570684,3763.1,3763.0,0.02171956]
[1641232828157,0.69717709,3763.1,3763.0,0.02171956]
[1641232832920,0.69989025,3763.1,3763.0,0.02171956]
[1641232834064,0.85986995,3763.1,3763.0,2.8590847]
[1641232835975,0.19529995,3763.1,3763.0,2.8590847]
[1641232836172,0.19529995,3763.1,3763.0,0.02171956]
[1641232841016,0.12596385,3763.1,3763.0,0.02171956]
[1641232844167,0.7929114,3763.1,3763.0,0.02171956]
[1641232845212,0.82375098,3763.1,3763.0,0.02171956]
[1641232848213,0.15922098,3763.1,3763.0,0.02171956]
[1641232852514,0.15922098,3763.1,3763.0,16.59171956]
[1641232852714,0.12842098,3763.1,3763.0,16.89171956]
[1641232853117,0.1283814,3763.1,3763.0,16.89171956]
[1641232853315,0.06194682,3763.1,3763.0,16.89171956]
[1641232853515,0.00241755,3763.1,3763.0,17.55591956]
[1641232853715,0.06198516,3763.6,3763.2,15.57]
[1641232853916,0.06198516,3763.6,3763.4,0.6641995]
[1641232854116,0.0022737,3763.5,3763.4,16.2341995]
[1641232854516,0.0022737,3763.5,3763.4,17.2341995]
[1641232855522,0.00416826,3763.5,3763.4,17.911685]
[1641232856255,0.00416826,3763.5,3763.4,18.575885]
[1641232856455,0.00416826,3763.5,3763.4,24.554385]
[1641232856656,0.00416826,3763.5,3763.4,24.854385]
[1641232859564,0.00416826,3763.5,3763.4,24.87610456]
[1641232861409,0.00416826,3763.5,3763.4,22.91190506]
[1641232862410,0.00416826,3763.5,3763.4,23.91190506]
[1641232862608,0.00416826,3763.5,3763.4,24.57611506]
[1641232863764,0.00416826,3763.5,3763.4,23.91190506]
[1641232864567,0.00416826,3763.5,3763.4,8.34190506]
[1641232864867,0.00416826,3763.5,3763.4,23.91190506]
[1641232865571,0.00416826,3763.5,3763.4,25.71094209]
[1641232865968,0.00416826,3763.5,3763.4,26.67515689]
[1641232866771,0.00416826,3763.5,3763.4,24.87611986]
[1641232873561,0.00416826,3763.5,3763.4,27.81778022]
[1641232877825,0.00416826,3763.5,3763.4,27.51778022]
[1641232879663,0.00416826,3763.5,3763.4,9.61936542]
[1641232879866,0.00416826,3763.5,3763.4,8.95516542]
[1641232880463,0.00416826,3763.5,3763.4,8.29096542]
[1641232881267,0.00416826,3763.5,3763.4,5.34930506]
[1641232881965,0.00416826,3763.5,3763.4,5.64930506]
[1641232882621,0.00416826,3763.5,3763.4,8.64025199]
[1641232883616,0.1540865,3763.5,3763.4,8.64025199]
[1641232884016,0.1518128,3763.5,3763.4,8.64025199]
[1641232886460,0.1518128,3763.5,3763.4,8.34025199]
[1641232886861,0.8162156,3763.5,3763.4,8.34025199]
[1641232887263,0.66629736,3763.5,3763.4,8.34025199]
[1641232890229,0.66625296,3763.5,3763.4,8.34025199]
[1641232890427,0.66625296,3763.5,3763.4,5.34930506]
[1641232890826,0.00189456,3763.5,3763.4,5.34930506]
[1641232891426,0.00189456,3763.5,3763.4,8.33175051]
[1641232893329,0.66625346,3763.5,3763.4,8.33175051]
[1641232894374,0.66625346,3763.5,3763.4,5.34930506]
[1641232895380,0.00189456,3763.5,3763.4,5.34930506]
[1641232896882,0.00189456,3763.5,3763.4,8.33392447]
[1641232902162,0.00419716,3763.5,3763.4,8.33392447]
[1641232902968,0.00419716,3763.5,3763.4,26.29517604]
[1641232903166,0.00419716,3763.5,3763.4,27.67717604]
[1641232903565,0.00419716,3763.5,3763.4,28.27717604]
[1641232904265,3.349e-05,3763.6,3763.5,8.45]
[1641232904465,0.06233166,3764.0,3763.5,32.4447698]
[1641232904665,0.06233166,3764.0,3763.8,15.57]
[1641232905018,0.06233166,3764.0,3763.9,27.44339459]
[1641232905220,7.499,3764.1,3763.9,28.44339459]
[1641232905422,7.499,3764.1,3764.0,26.57650837]
[1641232905620,7.499,3764.1,3764.0,28.25850837]
[1641232905821,7.50468424,3764.1,3764.0,28.25850837]
[1641232906225,7.50468424,3764.1,3764.0,29.4385542]
[1641232906422,6.72618424,3764.1,3764.0,29.4385542]
[1641232906621,6.72618424,3764.1,3764.0,37.73667361]
[1641232906820,6.72618424,3764.1,3764.0,29.28667361]
[1641232907424,6.77122831,3764.1,3764.0,29.28667361]
[1641232907623,0.05072831,3764.1,3764.0,29.28667361]
[1641232908427,0.09577238,3764.1,3764.0,29.28667361]
[1641232909361,0.21442525,3764.1,3764.0,29.28667361]
[1641232909762,2.66044699,3764.3,3764.0,29.28667361]
[1641232909763,2.66044699,3764.3,3764.2,9.11396]
[1641232909961,2.66044699,3764.3,3764.2,33.07070825]
[1641232910173,2.61286271,3764.3,3764.2,34.37070825]
[1641232910367,2.61286271,3764.3,3764.2,34.39242781]
[1641232910566,2.61286271,3764.3,3764.2,37.37704722]
[1641232910567,2.49195563,3764.3,3764.2,37.37704722]
[1641232910966,2.49195563,3764.3,3764.2,28.92704722]
[1641232911167,2.44323451,3764.3,3764.2,28.92704722]
[1641232911368,2.44323451,3764.3,3764.2,28.62704722]
[1641232911568,2.39593623,3764.3,3764.2,25.93549897]
[1641232912167,2.34878343,3764.3,3764.2,25.93549897]
[1641232912623,2.22787635,3764.3,3764.2,26.23549897]
[1641232912825,2.22787635,3764.3,3764.2,25.93549897]
[1641232913223,2.17915523,3764.3,3764.2,25.93549897]
[1641232913421,2.17915523,3764.3,3764.2,26.23549897]
[1641232913621,2.05824815,3764.3,3764.2,26.23549897]
[1641232914423,2.00952703,3764.3,3764.2,26.23549897]
[1641232914623,1.89087416,3764.3,3764.2,26.23549897]
[1641232915432,1.84215304,3764.3,3764.2,26.23549897]
[1641232915629,1.79710897,3764.3,3764.2,26.23549897]
[1641232916460,1.74838785,3764.3,3764.2,29.73577545]
[1641232916661,1.62973498,3764.3,3764.2,29.73577545]
[1641232917066,1.62973498,3764.3,3764.2,26.3014164]
[1641232917272,0.00721358,3764.3,3764.2,26.3014164]
[1641232917469,0.70507405,3764.4,3764.3,24.02]
[1641232917667,0.82598113,3764.4,3764.3,30.7151]
[1641232917867,0.82598113,3764.4,3764.3,30.78101743]
[1641232918070,0.82598113,3764.4,3764.3,30.80273699]
[1641232918468,0.82598113,3764.4,3764.3,25.3499636]
[1641232921019,0.82372692,3764.4,3764.3,25.3499636]
[1641232922020,0.82147271,3764.4,3764.3,25.3499636]
[1641232923423,0.82287268,3764.4,3764.3,25.3499636]
[1641232923623,0.77415156,3764.4,3764.3,25.3499636]
[1641232924077,0.77189735,3764.4,3764.3,25.3499636]
[1641232925081,0.76964314,3764.4,3764.3,25.3499636]
[1641232925281,0.76964314,3764.4,3764.3,9.7799636]
[1641232925482,0.76964314,3764.4,3764.3,9.71404617]
[1641232925785,0.76964314,3764.4,3764.3,25.28404617]
[1641232926182,0.76738893,3764.4,3764.3,25.28404617]
[1641232926382,0.41350434,3764.4,3764.3,25.28404617]
[1641232926989,0.41350434,3764.4,3764.3,22.28681956]
[1641232927185,0.41125013,3764.4,3764.3,22.28681956]
[1641232927834,0.41125013,3764.4,3764.3,25.28429527]
[1641232927835,0.29259726,3764.4,3764.3,25.28429527]
[1641232928833,0.28374978,3764.4,3764.3,25.28429527]
[1641232929436,0.31457907,3764.4,3764.3,25.28204106]
[1641232930034,0.1959262,3764.4,3764.3,25.28204106]
[1641232931042,0.15088213,3764.4,3764.3,25.28204106]
[1641232932063,0.03222926,3764.4,3764.3,25.28204106]
[1641232933262,0.02912926,3764.4,3764.3,25.28204106]
[1641232935125,0.00139997,3764.4,3764.3,9.71204106]
[1641232936128,0.00139997,3764.4,3764.3,25.28204106]
[1641232937228,0.00139997,3764.4,3764.3,24.28429527]
[1641232939665,0.00139997,3764.4,3764.3,8.71429527]
[1641232940269,0.00139997,3764.4,3764.3,10.12942168]
[1641232941070,0.00139997,3764.4,3764.3,8.33229527]
[1641232944319,0.00139997,3764.4,3764.3,8.2136424]
[1641232945325,0.00139997,3764.4,3764.3,23.7836424]
[1641232945523,0.00139997,3764.4,3764.3,24.4477224]
[1641232950518,0.00139997,3764.4,3764.3,24.44546819]
[1641232954365,0.00139997,3764.4,3764.3,24.39674707]
[1641232954766,0.00139997,3764.4,3764.3,26.18921385]
[1641232955169,0.88937599,3764.5,3764.3,26.18921385]
[1641232955170,0.28906843,3764.5,3764.4,8.45]
[1641232955371,0.06233021,3764.8,3764.5,0.09743157]
[1641232955571,0.06233021,3764.8,3764.6,11.96598]
[1641232955769,0.06233021,3764.8,3764.7,0.02171956]
[1641232955972,0.06233021,3764.8,3764.7,22.45581956]
[1641232956171,0.0596,3766.0,3764.7,22.45581956]
[1641232956172,4.20857233,3765.6,3764.7,22.45581956]
[1641232956369,0.34537233,3765.6,3764.8,0.6638416]
[1641232956570,0.00341054,3765.4,3765.2,0.66386]
[1641232956773,0.00341054,3765.4,3765.3,5.8633]
[1641232956971,0.6638566,3766.2,3765.4,15.57]
[1641232957175,0.6638566,3766.2,3765.6,15.57]
[1641232957176,1.73650082,3766.2,3765.6,15.57]
[1641232957372,1.73650082,3766.2,3765.8,15.57]
[1641232957373,0.00682108,3766.0,3765.8,15.57]
[1641232957628,0.00682108,3766.0,3765.9,5.4804]
[1641232957827,1.73650082,3766.2,3765.9,5.4804]
[1641232958227,0.00738951,3766.1,3765.9,5.49367686]
[1641232958733,0.00810822,3766.0,3765.9,5.49367686]
[1641232960134,0.00810822,3766.0,3765.9,24.06106939]
[1641232961136,0.00810822,3766.0,3765.9,8.51278895]
[1641232964482,0.00810822,3766.0,3765.9,24.08278895]
[1641232966028,0.00810822,3766.0,3765.9,24.74658895]
[1641232969775,0.00810822,3766.0,3765.9,25.12858895]
[1641232970980,0.00810822,3766.0,3765.9,26.92081603]
[1641232971382,0.00810822,3766.0,3765.9,27.92081603]
[1641232973316,1.1926589,3766.9,3765.9,27.92081603]
[1641232973517,1.1926589,3766.9,3766.2,15.57]
[1641232973720,1.1926589,3766.9,3766.5,0.66368]
[1641232973721,0.00454739,3766.8,3766.5,0.66368]
[1641232973918,0.00454739,3766.8,3766.6,5.50111956]
[1641232974118,0.0047589,3766.9,3766.6,5.50111956]
[1641232974119,0.00397897,3766.7,3766.6,5.50111956]
[1641232974822,0.00397897,3766.7,3766.6,24.06851209]
[1641232976279,0.00397897,3766.7,3766.6,24.45051209]
[1641232976479,0.00397897,3766.7,3766.6,25.45051209]
[1641232978280,7.897e-05,3766.7,3766.6,25.45051209]
[1641232978480,7.897e-05,3766.7,3766.6,25.75051209]
[1641232978781,0.06241186,3767.5,3766.7,8.45]
[1641232978984,0.06241186,3767.5,3767.2,1.3268105]
[1641232979183,0.00397896,3767.4,3767.3,21.4304]
[1641232979583,0.00454739,3767.5,3767.3,21.4304]
[1641232979785,0.00454739,3767.5,3767.4,3.65250785]
[1641232980031,0.00454739,3767.5,3767.4,25.08280785]
[1641232980437,0.00454739,3767.5,3767.4,22.68214732]
[1641232980833,0.00454739,3767.5,3767.4,22.69541889]
[1641232981036,0.00454739,3767.5,3767.4,25.69281142]
[1641232981434,0.0057247,3767.5,3767.4,25.69281142]
[1641232982036,0.0057247,3767.5,3767.4,8.8709641]
[1641232982538,0.0057247,3767.5,3767.4,8.4889641]
[1641232984370,0.0057247,3767.5,3767.4,5.51329113]
[1641232984970,0.0057247,3767.5,3767.4,6.65272641]
[1641232988921,0.0057247,3767.5,3767.4,22.22272641]
[1641232991371,0.5582542,3768.5,3767.8,0.66343]
[1641232991572,0.5582542,3768.5,3768.0,0.66342]
[1641232991772,0.00511581,3768.4,3768.0,0.66342]
[1641232991974,0.00511581,3768.4,3767.8,0.66343]
[1641232991975,0.00511581,3768.4,3768.2,0.02171956]
[1641232992173,0.00454738,3768.3,3768.2,0.02171956]
[1641232992375,0.00454738,3768.3,3768.2,5.32921956]
[1641232992876,0.00454738,3768.3,3768.2,6.44638721]
[1641232993272,0.00454738,3768.3,3768.2,7.10973721]
[1641232993474,0.00454738,3768.3,3768.2,7.77308721]
[1641232993673,0.00454738,3768.3,3768.2,7.10973721]
[1641232998433,0.00454738,3768.3,3768.2,10.10465971]
[1641233000078,0.51393603,3768.5,3768.3,3.45]
[1641233000281,0.51393603,3768.5,3768.3,0.66334]
[1641233000478,0.51393603,3768.5,3768.4,0.66334]
[1641233000679,0.51393603,3768.5,3768.4,0.68505956]
[1641233000885,0.51507288,3768.5,3768.4,0.68505956]
[1641233001579,0.51507288,3768.5,3768.4,3.67998206]
[1641233003621,0.51507288,3768.5,3768.4,3.69324993]
[1641233004023,0.51507288,3768.5,3768.4,9.00054993]
[1641233004524,0.51507288,3768.5,3768.4,10.79797309]
[1641233005326,0.51507288,3768.5,3768.4,9.00054993]
[1641233005829,0.51507288,3768.5,3768.4,11.29210608]
[1641233006276,0.51507288,3768.5,3768.4,9.00054993]
[1641233006479,0.51507288,3768.5,3768.4,11.32585046]
[1641233006882,0.72704898,3769.1,3768.5,0.00102712]
[1641233007079,0.72704898,3769.1,3768.8,0.66322]
[1641233007280,8.065e-05,3769.1,3768.9,21.92173]
[1641233007580,8.065e-05,3769.1,3769.0,8.47171956]
[1641233007777,8.065e-05,3769.1,3769.0,15.42171027]
[1641233007979,0.00349119,3769.1,3769.0,15.42171027]
[1641233008178,0.00349119,3769.1,3769.0,16.08478027]
[1641233008377,0.00349119,3769.1,3769.0,35.94970277]
[1641233008879,0.06228051,3769.2,3769.1,9.77602]
[1641233009077,0.06228051,3769.2,3769.1,34.63896136]
[1641233009278,6.12,3769.4,3769.1,35.30200136]
[1641233009480,6.12,3769.4,3769.2,16.23304]
[1641233009679,6.12,3769.4,3769.3,16.47811033]
[1641233009880,6.12,3769.4,3769.3,32.04811033]
[1641233010135,6.12170527,3769.4,3769.3,33.04811033]
[1641233010336,0.00170527,3769.4,3769.3,33.04811033]
[1641233010740,0.00170527,3769.4,3769.3,36.04303283]
[1641233010938,0.00170527,3769.4,3769.3,38.03202733]
[1641233011639,0.00170527,3769.4,3769.3,29.58202733]
[1641233012039,0.00170527,3769.4,3769.3,29.68738633]
[1641233012939,0.00170527,3769.4,3769.3,29.70910589]
[1641233014285,0.00170527,3769.4,3769.3,29.72237077]
[1641233014683,0.00272267,3769.4,3769.3,29.72237077]
[1641233015689,0.00272267,3769.4,3769.3,28.72237077]
[1641233015889,0.00272267,3769.4,3769.3,26.38226044]
[1641233016191,0.00272267,3769.4,3769.3,27.39453387]
[1641233017922,0.00272267,3769.4,3769.3,27.38226044]
[1641233020429,2.267e-05,3769.4,3769.3,27.38226044]
[1641233020730,0.0073973,3769.5,3769.3,27.38226044]
[1641233020731,0.0073973,3769.5,3769.4,8.45]
[1641233020930,0.0073973,3769.5,3769.4,16.53562521]
[1641233021282,0.0073973,3769.5,3769.4,33.11648499]
[1641233021484,0.0073973,3769.5,3769.4,33.12734477]
[1641233021681,0.0073973,3769.5,3769.4,24.97734477]
[1641233022081,1.2431,3770.9,3769.4,24.97734477]
[1641233022082,1.2431,3770.9,3769.7,0.6629616]
[1641233022283,1.2431,3770.9,3770.1,0.66296]
[1641233022284,7.5032157,3770.8,3770.1,0.66296]
[1641233022481,7.5032157,3770.8,3770.2,5.3048]
[1641233022482,0.00738951,3770.7,3770.2,5.3048]
[1641233022883,0.00682108,3770.6,3770.2,5.3048]
[1641233023282,0.00625266,3770.5,3770.2,5.3048]
[1641233023683,0.00568424,3770.4,3770.3,2.9949225]
[1641233025127,0.00568424,3770.4,3770.3,3.00818369]
[1641233025727,0.00671171,3770.4,3770.3,3.00818369]
[1641233025928,0.61981341,3770.6,3770.3,3.00818369]
[1641233026932,0.61981341,3770.6,3770.4,0.02171956]
[1641233027536,0.3,3770.5,3770.4,3.01664206]
[1641233027737,10.70362183,3770.5,3770.4,3.01664206]
[1641233028232,3.65362183,3770.5,3770.4,3.01528139]
[1641233028634,3.65362183,3770.5,3770.4,0.02035889]
[1641233028881,6.29273988,3770.5,3770.4,0.02035889]
[1641233029080,5.29273988,3770.5,3770.4,0.02035889]
[1641233029287,2.93911805,3770.5,3770.4,0.02035889]
[1641233029482,0.3,3770.5,3770.4,0.02035889]
[1641233030287,0.61981341,3770.6,3770.4,0.02035889]
[1641233030686,0.3,3770.5,3770.4,3.01421609]
[1641233032089,0.3,3770.5,3770.4,3.00471698]
[1641233032290,0.3,3770.5,3770.4,3.01421609]
[1641233032932,2.64092723,3770.5,3770.4,3.01421609]
[1641233033432,0.61981341,3770.6,3770.4,3.01421609]
[1641233033633,0.3,3770.5,3770.4,3.01421609]
[1641233033834,0.3,3770.5,3770.4,3.00335631]
[1641233034035,0.3,3770.5,3770.4,3.01421609]
[1641233035940,0.3081695,3770.5,3770.4,3.01421609]
[1641233036790,0.30908869,3770.5,3770.4,3.01421609]
[1641233038392,0.00908869,3770.5,3770.4,3.01421609]
[1641233038594,0.30908869,3770.5,3770.4,3.01421609]
[1641233038792,0.00908869,3770.5,3770.4,3.01421609]
[1641233040633,0.30908869,3770.5,3770.4,3.01421609]
[1641233043635,2.62921552,3770.5,3770.4,3.01421609]
[1641233043883,0.30908869,3770.5,3770.4,0.02035889]
[1641233045094,2.75696559,3770.5,3770.4,0.02035889]
[1641233045587,4.13896559,3770.5,3770.4,0.02035889]
[1641233047390,1.69108869,3770.5,3770.4,0.02035889]
[1641233047625,4.05550265,3770.5,3770.4,0.02035889]
[1641233049628,1.00908869,3770.5,3770.4,0.02035889]
[1641233049830,1.00908869,3770.5,3770.3,2.57728069]
[1641233049831,0.00908869,3770.5,3770.3,2.49763958]
[1641233050028,0.00908869,3770.5,3770.3,0.03897908]
[1641233050834,0.00908869,3770.5,3770.4,5.3045]
[1641233051036,2.67152688,3770.5,3770.4,5.96754]
[1641233051278,2.67152688,3770.5,3770.4,7.18194466]
[1641233052077,0.00908869,3770.5,3770.4,10.17523464]
[1641233057744,0.00908869,3770.5,3770.4,26.12723464]
[1641233058445,0.01056213,3770.5,3770.4,10.55723464]
[1641233058646,0.01056213,3770.5,3770.4,10.49441858]
[1641233059283,0.01056213,3770.5,3770.4,8.89801392]
[1641233059483,0.01056213,3770.5,3770.4,8.23497392]
[1641233059684,0.67381213,3770.5,3770.4,8.23497392]
[1641233059887,0.01056213,3770.5,3770.4,8.23497392]
[1641233060095,0.31056213,3770.5,3770.4,8.23497392]
[1641233060491,0.31056213,3770.5,3770.4,5.24168394]
[1641233061196,0.97379213,3770.5,3770.4,5.24168394]
[1641233061693,0.31056213,3770.5,3770.4,5.24168394]
[1641233062095,0.31056213,3770.5,3770.4,5.34704294]
[1641233067083,2.62213259,3770.5,3770.4,5.34704294]
[1641233067381,0.31056213,3770.5,3770.4,5.34704294]
[1641233067981,3.69084035,3770.5,3770.4,5.34704294]
[1641233069582,4.35413035,3770.5,3770.4,5.34704294]
[1641233071031,1.97385213,3770.5,3770.4,5.34704294]
[1641233071431,0.97385213,3770.5,3770.4,5.34704294]
[1641233071631,1.97385213,3770.5,3770.4,5.34704294]
[1641233071831,0.31056213,3770.5,3770.4,5.34704294]
[1641233072030,1.31056213,3770.5,3770.4,5.34704294]
[1641233072230,0.31056213,3770.5,3770.4,5.34704294]
[1641233072431,1.31056213,3770.5,3770.4,5.34704294]
[1641233072630,0.31056213,3770.5,3770.4,5.34704294]
[1641233072831,1.31056213,3770.5,3770.4,5.34704294]
[1641233073033,0.31056213,3770.5,3770.4,5.34704294]
[1641233073234,1.31056213,3770.5,3770.4,5.34704294]
[1641233073634,0.31056213,3770.5,3770.4,5.34704294]
[1641233073880,0.01056213,3770.5,3770.4,5.34704294]
[1641233076688,0.01056213,3770.5,3770.4,8.3408031]
[1641233077288,0.01056213,3770.5,3770.4,5.34704294]
[1641233085138,0.01056213,3770.5,3770.4,8.34078566]
[1641233086540,0.69256213,3770.5,3770.4,8.34078566]
[1641233086740,3.23785328,3770.5,3770.4,8.34078566]
[1641233086942,4.23785328,3770.5,3770.4,8.34078566]
[1641233087341,4.23785328,3770.5,3770.4,5.34704294]
[1641233087940,4.02399058,3770.5,3770.4,5.34704294]
[1641233088141,4.68727058,3770.5,3770.4,5.34704294]
[1641233089190,4.68727058,3770.5,3769.5,0.0074524]
[1641233089191,8.45,3770.4,3769.5,0.0074524]
[1641233089394,0.6634,3769.9,3769.5,0.0074524]
[1641233089593,3.69612392,3769.8,3769.6,0.00454739]
[1641233089893,2.45068502,3769.7,3769.6,0.00454739]
[1641233090093,1.982,3769.7,3769.6,0.00454739]
[1641233090296,1.982,3769.7,3769.6,0.10990639]
[1641233090297,4.39965184,3769.7,3769.6,0.10990639]
[1641233090496,3.40170205,3769.7,3769.6,0.10990639]
[1641233090695,3.40170205,3769.7,3769.5,0.0074524]
[1641233090696,8.30170205,3769.7,3768.7,0.06227653]
[1641233090897,0.6635,3769.2,3768.7,0.06227653]
[1641233091098,0.6635,3769.2,3768.8,0.00454739]
[1641233091099,0.9635,3769.2,3768.8,0.00454739]
[1641233091300,0.3,3769.2,3768.8,0.00454739]
[1641233091696,0.3,3769.2,3768.7,0.00511581]
[1641233091897,1.9904981,3769.0,3768.7,0.00511581]
[1641233092097,0.3,3768.9,3768.7,0.00511581]
[1641233092298,0.3,3768.9,3768.6,0.0073973]
[1641233092299,4.07087504,3768.9,3768.6,0.0073973]
[1641233092534,4.29807504,3768.9,3768.6,0.0073973]
[1641233092930,1.85436,3768.9,3768.6,0.0073973]
[1641233093129,2.51794,3768.9,3768.6,0.0073973]
[1641233093332,0.59724305,3768.8,3768.6,0.0073973]
[1641233093532,2.790585,3768.7,3768.6,0.0073973]
[1641233093934,4.090585,3768.7,3768.4,0.105359]
[1641233094131,1.96362,3768.6,3768.4,0.105359]
[1641233094331,2.43290418,3768.5,3768.4,0.105359]
[1641233094531,2.64562,3768.6,3768.4,0.105359]
[1641233094731,2.64562,3768.6,3768.4,0.10706427]
[1641233095536,3.30924,3768.6,3768.4,0.10706427]
[1641233096141,3.30924,3768.6,3768.4,0.00170527]
[1641233096386,3.00924,3768.6,3768.4,0.00170527]
[1641233096587,3.00924,3768.6,3767.9,0.00454739]
[1641233096785,0.66365,3768.1,3767.9,0.00454739]
[1641233096985,0.382,3768.0,3767.9,0.00454739]
[1641233097186,0.682,3768.0,3767.9,0.00454739]
[1641233098787,0.682,3768.0,3767.9,0.10990639]
[1641233101445,0.68385073,3768.0,3767.9,0.10990639]
[1641233107732,0.00185073,3768.0,3767.9,0.10990639]
[1641233108739,0.00185073,3768.0,3767.9,3.10537619]
[1641233108937,0.00185073,3768.0,3767.9,3.00001719]
[1641233111293,0.30185073,3768.0,3767.9,3.00001719]
[1641233111491,2.70473604,3768.0,3767.9,3.00001719]
[1641233111691,0.60185073,3768.0,3767.9,3.00001719]
[1641233111994,3.37564056,3768.0,3767.9,3.00001719]
[1641233112393,4.37564056,3768.0,3767.9,3.00001719]
[1641233112593,3.45,3767.9,3767.3,1.85879935]
[1641233112892,0.6638386,3767.7,3767.4,0.00284212]
[1641233113093,0.66384,3767.5,3767.3,1.85879935]
[1641233113295,0.66384,3767.5,3767.3,1.79617255]
[1641233113296,1.04584,3767.4,3767.3,1.79617255]
[1641233113494,3.48906205,3767.4,3766.8,1.79817255]
[1641233113693,3.78906205,3767.4,3766.9,5.3091]
[1641233113993,0.3,3767.1,3766.9,5.31194212]
[1641233116041,0.3,3767.1,3766.9,5.41730112]
[1641233116644,1.3277051,3767.2,3766.9,5.41730112]
[1641233116843,0.00113685,3767.6,3766.9,5.41730112]
[1641233117847,1.9912077,3767.4,3766.9,5.41730112]
[1641233118044,0.382,3767.3,3767.1,1.79617255]
[1641233118244,0.682,3767.3,3767.1,1.79617255]
[1641233118444,0.682,3767.3,3767.2,0.00113684]
[1641233118644,1.982,3767.3,3767.2,0.00113684]
[1641233119087,1.98356291,3767.3,3767.2,0.00113684]
[1641233119287,1.98356291,3767.3,3767.1,0.01327228]
[1641233119491,2.64736291,3767.3,3767.2,0.00113684]
[1641233120092,5.17032293,3767.3,3767.2,0.00113684]
[1641233120290,5.17032293,3767.3,3767.1,0.01327228]
[1641233120491,2.40737421,3767.2,3767.1,0.01327228]
[1641233120689,3.78937421,3767.2,3767.1,0.01327228]
[1641233120891,1.382,3767.2,3766.9,5.414459]
[1641233121092,1.62781,3767.1,3766.9,5.414459]
[1641233121293,0.382,3767.0,3766.9,5.414459]
[1641233121691,0.382,3767.0,3766.9,5.41616428]
[1641233123942,0.682,3767.0,3766.9,5.41616428]
[1641233124742,3.10376951,3767.0,3766.9,5.41616428]
[1641233125548,4.40376951,3767.0,3766.9,5.41616428]
[1641233126150,4.40376951,3767.0,3766.9,0.10422298]
[1641233126383,4.40376951,3767.0,3766.9,0.00170528]
[1641233126783,0.66399,3766.7,3766.6,0.06228393]
[1641233126984,1.04599,3766.7,3766.6,0.06228393]
[1641233127184,1.04599,3766.7,3766.6,0.00170527]